[Event "Titled Tuesday Blitz November 08 Early 2022"]
[White "Paszewski, Mateusz"]
[Black "Liyanage, Ranindu Dilshan"]
[WhiteFideId "1141058"]
[BlackFideId "9915834"]
[WhiteElo "2263"]
[BlackElo "2210"]
[Result "1-0"]
[Round "07"]
[TimeControl "180+1"]
[Date "2022.11.09"]
[WhiteClock "0:00:11"]
[BlackClock "0:00:10"]

1. Nf3 {[%clk 0:03:00]}  Nf6 {[%clk 0:02:59]} 2. c4 {[%clk 0:02:53]}  e6 {[%clk 0:02:59]} 3. Nc3 {[%clk 0:02:52]}  d5 {[%clk 0:03:00]} 4. e3 {[%clk 0:02:52]}  c5 {[%clk 0:02:57]} 5. cxd5 {[%clk 0:02:52]}  exd5 {[%clk 0:02:57]} 6. d4 {[%clk 0:02:52]}  Nc6 {[%clk 0:02:56]} 7. Bb5 {[%clk 0:02:51]}  cxd4 {[%clk 0:02:56]} 8. Nxd4 {[%clk 0:02:51]}  Bd7 {[%clk 0:02:54]} 9. O-O {[%clk 0:02:50]}  Bd6 {[%clk 0:02:51]} 10. b3 {[%clk 0:02:43]}  Qe7 {[%clk 0:02:45]} 11. Nf3 {[%clk 0:02:35]}  Be6 {[%clk 0:02:42]} 12. Bb2 {[%clk 0:02:34]}  O-O {[%clk 0:02:42]} 13. Rc1 {[%clk 0:02:30]}  Rfd8 {[%clk 0:02:41]} 14. Ne2 {[%clk 0:02:21]}  Rac8 {[%clk 0:02:39]} 15. Ng3 {[%clk 0:02:18]}  Bg4 {[%clk 0:02:28]} 16. Be2 {[%clk 0:02:16]}  Ne4 {[%clk 0:02:21]} 17. Nd4 {[%clk 0:02:10]}  Nxd4 {[%clk 0:01:54]} 18. Qxd4 {[%clk 0:02:04]}  Qg5 {[%clk 0:01:18]} 19. Bxg4 {[%clk 0:01:21]}  Rxc1 {[%clk 0:01:07]} 20. Rxc1 {[%clk 0:01:14]}  Qxg4 {[%clk 0:00:45]} 21. f3 {[%clk 0:01:04]}  Qg5 {[%clk 0:00:43]} 22. fxe4 {[%clk 0:01:01]}  dxe4 {[%clk 0:00:44]} 23. Qxe4 {[%clk 0:00:34]}  h5 {[%clk 0:00:30]} 24. Rf1 {[%clk 0:00:15]}  Bc5 {[%clk 0:00:26]} 25. Nf5 {[%clk 0:00:10]}  Bf8 {[%clk 0:00:22]} 26. Qf4 {[%clk 0:00:09]}  Qg6 {[%clk 0:00:20]} 27. Nh4 {[%clk 0:00:09]}  Qe6 {[%clk 0:00:20]} 28. Nf5 {[%clk 0:00:09]}  Qg6 {[%clk 0:00:19]} 29. h3 {[%clk 0:00:08]}  Rd2 {[%clk 0:00:16]} 30. Rf2 {[%clk 0:00:08]}  Rd1+ {[%clk 0:00:16]} 31. Kh2 {[%clk 0:00:08]}  Rd5 {[%clk 0:00:15]} 32. e4 {[%clk 0:00:05]}  Rd1 {[%clk 0:00:13]} 33. Be5 {[%clk 0:00:05]}  f6 {[%clk 0:00:12]} 34. Bb8 {[%clk 0:00:03]}  Qe8 {[%clk 0:00:11]} 35. Qg3 {[%clk 0:00:03]}  Qxe4 {[%clk 0:00:07]} 36. Nh6+ {[%clk 0:00:03]}  Kh7 {[%clk 0:00:07]} 37. Nf5 {[%clk 0:00:03]}  Qe1 {[%clk 0:00:07]} 38. Qf3 {[%clk 0:00:03]}  Qh1+ {[%clk 0:00:07]} 39. Kg3 {[%clk 0:00:03]}  Qe1 {[%clk 0:00:07]} 40. Qxh5+ {[%clk 0:00:03]}  Kg8 {[%clk 0:00:08]} 41. Nh6+ {[%clk 0:00:04]}  gxh6 {[%clk 0:00:07]} 42. Qg6+ {[%clk 0:00:05]}  Bg7 {[%clk 0:00:08]} 43. Qf5 {[%clk 0:00:04]}  Rd8 {[%clk 0:00:06]} 44. Bxa7 {[%clk 0:00:04]}  Re8 {[%clk 0:00:06]} 45. Bd4 {[%clk 0:00:03]}  h5 {[%clk 0:00:06]} 46. Qg6 {[%clk 0:00:03]}  Rf8 {[%clk 0:00:03]} 47. Kh2 {[%clk 0:00:03]}  Qe6 {[%clk 0:00:02]} 48. Qf5 {[%clk 0:00:03]}  Qd6+ {[%clk 0:00:02]} 49. Qf4 {[%clk 0:00:03]}  Qd5 {[%clk 0:00:03]} 50. Bc3 {[%clk 0:00:03]}  Re8 {[%clk 0:00:03]} 51. Qc4 {[%clk 0:00:04]}  Qxc4 {[%clk 0:00:03]} 52. bxc4 {[%clk 0:00:05]}  Rc8 {[%clk 0:00:04]} 53. Bxf6 {[%clk 0:00:05]}  Bxf6 {[%clk 0:00:05]} 54. Rxf6 {[%clk 0:00:06]}  Rxc4 {[%clk 0:00:06]} 55. Rb6 {[%clk 0:00:07]}  Rc7 {[%clk 0:00:05]} 56. a4 {[%clk 0:00:06]}  Kh7 {[%clk 0:00:06]} 57. Kg3 {[%clk 0:00:06]}  Kg7 {[%clk 0:00:05]} 58. Kh4 {[%clk 0:00:06]}  Rc4+ {[%clk 0:00:04]} 59. Kxh5 {[%clk 0:00:07]}  Rxa4 {[%clk 0:00:05]} 60. Rxb7+ {[%clk 0:00:08]}  Kf6 {[%clk 0:00:06]} 61. g4 {[%clk 0:00:08]}  Ra3 {[%clk 0:00:06]} 62. h4 {[%clk 0:00:08]}  Ra5+ {[%clk 0:00:05]} 63. g5+ {[%clk 0:00:08]}  Kf5 {[%clk 0:00:05]} 64. Rf7+ {[%clk 0:00:09]}  Ke6 {[%clk 0:00:06]} 65. Rf1 {[%clk 0:00:10]}  Ke7 {[%clk 0:00:06]} 66. Kh6 {[%clk 0:00:10]}  Ra4 {[%clk 0:00:07]} 67. h5 {[%clk 0:00:11]}  Ra8 {[%clk 0:00:08]} 68. g6 {[%clk 0:00:11]}  Rh8+ {[%clk 0:00:09]} 69. Kg5 {[%clk 0:00:12]}  Ke6 {[%clk 0:00:09]} 70. g7 {[%clk 0:00:12]}  Rf8 {[%clk 0:00:10]} 71. gxf8=Q {[%clk 0:00:11]} 1-0


[Site "https://www.chess.com"]

[Event "Titled Tuesday Blitz November 08 Early 2022"]
[White "Perez Gormaz, Matias"]
[Black "Zemlyanskii, Ivan"]
[WhiteFideId "3406342"]
[BlackFideId "24249971"]
[WhiteElo "2341"]
[BlackElo "2107"]
[Result "1-0"]
[Round "07"]
[TimeControl "180+1"]
[Date "2022.11.09"]
[WhiteClock "0:00:09"]
[BlackClock "0:00:01"]

1. e4 {[%clk 0:03:00]}  c5 {[%clk 0:03:00]} 2. Nf3 {[%clk 0:03:00]}  d6 {[%clk 0:03:00]} 3. Bb5+ {[%clk 0:02:59]}  Nd7 {[%clk 0:03:00]} 4. c4 {[%clk 0:02:59]}  Nf6 {[%clk 0:02:57]} 5. Nc3 {[%clk 0:02:59]}  e6 {[%clk 0:02:58]} 6. O-O {[%clk 0:02:59]}  Be7 {[%clk 0:02:59]} 7. d3 {[%clk 0:02:55]}  O-O {[%clk 0:02:59]} 8. h3 {[%clk 0:02:56]}  Nb6 {[%clk 0:02:59]} 9. Be3 {[%clk 0:02:50]}  a6 {[%clk 0:02:58]} 10. Ba4 {[%clk 0:02:51]}  Nxa4 {[%clk 0:02:58]} 11. Qxa4 {[%clk 0:02:51]}  Bd7 {[%clk 0:02:55]} 12. Qd1 {[%clk 0:02:51]}  b5 {[%clk 0:02:52]} 13. b3 {[%clk 0:02:52]}  Bc6 {[%clk 0:02:47]} 14. Re1 {[%clk 0:02:44]}  Qc7 {[%clk 0:02:43]} 15. Rc1 {[%clk 0:02:43]}  Qb7 {[%clk 0:02:40]} 16. Qc2 {[%clk 0:02:38]}  Rac8 {[%clk 0:02:39]} 17. Ne2 {[%clk 0:02:35]}  d5 {[%clk 0:02:27]} 18. cxd5 {[%clk 0:02:31]}  exd5 {[%clk 0:02:28]} 19. e5 {[%clk 0:02:31]}  Nd7 {[%clk 0:02:17]} 20. d4 {[%clk 0:02:31]}  c4 {[%clk 0:02:07]} 21. Bg5 {[%clk 0:02:24]}  Ba3 {[%clk 0:02:03]} 22. Rb1 {[%clk 0:02:16]}  Bb4 {[%clk 0:01:56]} 23. Red1 {[%clk 0:02:12]}  h6 {[%clk 0:01:56]} 24. Bh4 {[%clk 0:01:48]}  Ba5 {[%clk 0:01:45]} 25. Ng3 {[%clk 0:01:42]}  g6 {[%clk 0:01:22]} 26. e6 {[%clk 0:01:30]}  Nb8 {[%clk 0:01:10]} 27. e7 {[%clk 0:01:30]}  Rfe8 {[%clk 0:01:08]} 28. Ne5 {[%clk 0:01:27]}  Rxe7 {[%clk 0:00:57]} 29. Bxe7 {[%clk 0:01:27]}  Qxe7 {[%clk 0:00:58]} 30. Rbc1 {[%clk 0:01:13]}  Qf6 {[%clk 0:00:53]} 31. Ng4 {[%clk 0:01:10]}  Qg7 {[%clk 0:00:51]} 32. Qe2 {[%clk 0:01:09]}  Re8 {[%clk 0:00:47]} 33. Qf3 {[%clk 0:01:09]}  Nd7 {[%clk 0:00:47]} 34. bxc4 {[%clk 0:01:08]}  bxc4 {[%clk 0:00:43]} 35. Rb1 {[%clk 0:01:00]}  h5 {[%clk 0:00:41]} 36. Ne3 {[%clk 0:00:59]}  Nf6 {[%clk 0:00:36]} 37. Nxc4 {[%clk 0:00:57]}  Ba4 {[%clk 0:00:36]} 38. Nxa5 {[%clk 0:00:56]}  Bxd1 {[%clk 0:00:35]} 39. Rxd1 {[%clk 0:00:54]}  h4 {[%clk 0:00:36]} 40. Nf1 {[%clk 0:00:54]}  Ne4 {[%clk 0:00:34]} 41. Ne3 {[%clk 0:00:53]}  Rd8 {[%clk 0:00:25]} 42. Nc6 {[%clk 0:00:43]}  Rd6 {[%clk 0:00:25]} 43. Ne7+ {[%clk 0:00:38]}  Kh8 {[%clk 0:00:24]} 44. N7xd5 {[%clk 0:00:32]}  f5 {[%clk 0:00:24]} 45. Nf4 {[%clk 0:00:29]}  Ng5 {[%clk 0:00:21]} 46. Qa8+ {[%clk 0:00:28]}  Kh7 {[%clk 0:00:19]} 47. d5 {[%clk 0:00:24]}  Ne4 {[%clk 0:00:18]} 48. Qe8 {[%clk 0:00:19]}  Qb2 {[%clk 0:00:13]} 49. Qf7+ {[%clk 0:00:15]}  Kh6 {[%clk 0:00:11]} 50. Qf8+ {[%clk 0:00:13]}  Kh7 {[%clk 0:00:11]} 51. Qe7+ {[%clk 0:00:12]}  Kg8 {[%clk 0:00:07]} 52. Nd3 {[%clk 0:00:09]}  Qxa2 {[%clk 0:00:03]} 53. Rc1 {[%clk 0:00:09]}  Qa4 {[%clk 0:00:01]} 54. Rc8+ {[%clk 0:00:09]} 1-0


[Site "https://www.chess.com"]

[Event "Titled Tuesday Blitz November 08 Early 2022"]
[White "Perez Ponsa, Federico"]
[Black "Le, Tuan Minh"]
[WhiteFideId "117927"]
[BlackFideId "12401153"]
[WhiteElo "2606"]
[BlackElo "2530"]
[Result "0-1"]
[Round "07"]
[TimeControl "180+1"]
[Date "2022.11.08"]
[WhiteClock "0:01:21"]
[BlackClock "0:00:19"]

1. e4 {[%clk 0:03:00]}  c5 {[%clk 0:02:59]} 2. Nf3 {[%clk 0:03:01]}  Nf6 {[%clk 0:02:58]} 3. e5 {[%clk 0:03:00]}  Nd5 {[%clk 0:02:59]} 4. Nc3 {[%clk 0:03:00]}  e6 {[%clk 0:02:59]} 5. Ne4 {[%clk 0:03:00]}  f5 {[%clk 0:02:59]} 6. Nc3 {[%clk 0:03:00]}  Nb4 {[%clk 0:03:00]} 7. d4 {[%clk 0:02:55]}  cxd4 {[%clk 0:02:58]} 8. Nxd4 {[%clk 0:02:55]}  N8c6 {[%clk 0:02:58]} 9. Nf3 {[%clk 0:02:45]}  Qa5 {[%clk 0:02:48]} 10. a3 {[%clk 0:02:37]}  Nxe5 {[%clk 0:02:37]} 11. Be2 {[%clk 0:02:17]}  Nbc6 {[%clk 0:02:33]} 12. O-O {[%clk 0:02:17]}  Nxf3+ {[%clk 0:02:27]} 13. Bxf3 {[%clk 0:02:17]}  Be7 {[%clk 0:02:27]} 14. Bh5+ {[%clk 0:02:10]}  g6 {[%clk 0:02:26]} 15. Bf3 {[%clk 0:02:08]}  O-O {[%clk 0:02:25]} 16. Bh6 {[%clk 0:02:08]}  Rf7 {[%clk 0:02:24]} 17. Nd5 {[%clk 0:02:07]}  Bf8 {[%clk 0:02:12]} 18. b4 {[%clk 0:02:06]}  Qd8 {[%clk 0:02:12]} 19. Bf4 {[%clk 0:02:04]}  d6 {[%clk 0:02:05]} 20. Re1 {[%clk 0:02:01]}  e5 {[%clk 0:02:05]} 21. Be3 {[%clk 0:01:59]}  Be6 {[%clk 0:02:03]} 22. c4 {[%clk 0:01:59]}  e4 {[%clk 0:01:47]} 23. Be2 {[%clk 0:01:56]}  Ne5 {[%clk 0:01:45]} 24. Rc1 {[%clk 0:01:56]}  g5 {[%clk 0:01:34]} 25. Bh5 {[%clk 0:01:51]}  Rd7 {[%clk 0:01:25]} 26. Bd4 {[%clk 0:01:47]}  Bg7 {[%clk 0:01:24]} 27. Rc3 {[%clk 0:01:42]}  Rc8 {[%clk 0:01:18]} 28. Be2 {[%clk 0:01:41]}  Bxd5 {[%clk 0:01:14]} 29. cxd5 {[%clk 0:01:40]}  Rxc3 {[%clk 0:01:14]} 30. Bxc3 {[%clk 0:01:41]}  Nf3+ {[%clk 0:00:55]} 31. gxf3 {[%clk 0:01:39]}  Bxc3 {[%clk 0:00:56]} 32. Rf1 {[%clk 0:01:40]}  exf3 {[%clk 0:00:55]} 33. Bxf3 {[%clk 0:01:41]}  g4 {[%clk 0:00:54]} 34. Bg2 {[%clk 0:01:41]}  Qf6 {[%clk 0:00:48]} 35. Qd3 {[%clk 0:01:40]}  Re7 {[%clk 0:00:45]} 36. Rc1 {[%clk 0:01:37]}  Bd4 {[%clk 0:00:43]} 37. Rd1 {[%clk 0:01:32]}  Bb6 {[%clk 0:00:43]} 38. a4 {[%clk 0:01:32]}  a6 {[%clk 0:00:43]} 39. a5 {[%clk 0:01:32]}  Ba7 {[%clk 0:00:43]} 40. Kf1 {[%clk 0:01:32]}  Qe5 {[%clk 0:00:38]} 41. h3 {[%clk 0:01:29]}  Kg7 {[%clk 0:00:30]} 42. Rc1 {[%clk 0:01:24]}  Bxf2 {[%clk 0:00:20]} 43. hxg4 {[%clk 0:01:21]}  fxg4 {[%clk 0:00:20]} 44. Rc4 {[%clk 0:01:21]}  Qe1# {[%clk 0:00:19]} 0-1


[Site "https://www.chess.com"]

[Event "Titled Tuesday Blitz November 08 Early 2022"]
[White "Pranav, V"]
[Black "Piesik, Piotr"]
[WhiteFideId "25060783"]
[BlackFideId "1136194"]
[WhiteElo "2954"]
[BlackElo "2730"]
[Result "1-0"]
[Round "07"]
[TimeControl "180+1"]
[Date "2022.11.09"]
[WhiteClock "0:00:05"]
[BlackClock "0:00:18"]

1. e4 {[%clk 0:03:00]}  g6 {[%clk 0:02:57]} 2. d4 {[%clk 0:02:59]}  Bg7 {[%clk 0:02:57]} 3. Nc3 {[%clk 0:03:00]}  c6 {[%clk 0:02:58]} 4. Bg5 {[%clk 0:03:00]}  d5 {[%clk 0:02:57]} 5. e5 {[%clk 0:02:55]}  f6 {[%clk 0:02:57]} 6. exf6 {[%clk 0:02:55]}  exf6 {[%clk 0:02:57]} 7. Be3 {[%clk 0:02:55]}  Ne7 {[%clk 0:02:57]} 8. Qf3 {[%clk 0:02:52]}  Nf5 {[%clk 0:02:55]} 9. O-O-O {[%clk 0:02:53]}  Nxe3 {[%clk 0:02:54]} 10. Qxe3+ {[%clk 0:02:52]}  Kf7 {[%clk 0:02:53]} 11. h3 {[%clk 0:02:52]}  h5 {[%clk 0:02:53]} 12. Kb1 {[%clk 0:02:48]}  Bh6 {[%clk 0:02:52]} 13. Qf3 {[%clk 0:02:47]}  Nd7 {[%clk 0:02:51]} 14. h4 {[%clk 0:02:45]}  Nb6 {[%clk 0:02:48]} 15. Be2 {[%clk 0:02:42]}  Re8 {[%clk 0:02:41]} 16. Qg3 {[%clk 0:02:38]}  Bf5 {[%clk 0:02:34]} 17. Bd3 {[%clk 0:02:38]}  Bxd3 {[%clk 0:02:29]} 18. Qxd3 {[%clk 0:02:37]}  Nc4 {[%clk 0:02:26]} 19. b3 {[%clk 0:02:36]}  Nd6 {[%clk 0:02:25]} 20. Nge2 {[%clk 0:02:36]}  Qd7 {[%clk 0:02:19]} 21. Ng3 {[%clk 0:02:20]}  Re7 {[%clk 0:02:18]} 22. Rde1 {[%clk 0:02:07]}  Rae8 {[%clk 0:02:17]} 23. Rxe7+ {[%clk 0:02:08]}  Rxe7 {[%clk 0:02:17]} 24. Kb2 {[%clk 0:02:08]}  Qg4 {[%clk 0:02:14]} 25. a3 {[%clk 0:02:03]}  Bf4 {[%clk 0:02:10]} 26. Nge2 {[%clk 0:01:57]}  Bh6 {[%clk 0:02:05]} 27. g3 {[%clk 0:01:56]}  Qf5 {[%clk 0:02:01]} 28. Rd1 {[%clk 0:01:49]}  Qxd3 {[%clk 0:01:59]} 29. cxd3 {[%clk 0:01:47]}  Nf5 {[%clk 0:01:55]} 30. Kc2 {[%clk 0:01:47]}  Bf8 {[%clk 0:01:52]} 31. Re1 {[%clk 0:01:46]}  Re6 {[%clk 0:01:50]} 32. b4 {[%clk 0:01:45]}  Bd6 {[%clk 0:01:48]} 33. Kd2 {[%clk 0:01:42]}  g5 {[%clk 0:01:47]} 34. hxg5 {[%clk 0:01:38]}  fxg5 {[%clk 0:01:48]} 35. Nd1 {[%clk 0:01:36]}  h4 {[%clk 0:01:42]} 36. g4 {[%clk 0:01:36]}  Ne7 {[%clk 0:01:34]} 37. Ne3 {[%clk 0:01:29]}  Ng6 {[%clk 0:01:34]} 38. Nf5 {[%clk 0:01:28]}  Bf4+ {[%clk 0:01:32]} 39. Kd1 {[%clk 0:01:28]}  Bc7 {[%clk 0:01:26]} 40. Rh1 {[%clk 0:01:25]}  Nf4 {[%clk 0:01:23]} 41. Nxf4 {[%clk 0:01:16]}  Bxf4 {[%clk 0:01:24]} 42. f3 {[%clk 0:01:10]}  Kf6 {[%clk 0:01:23]} 43. Rh3 {[%clk 0:01:01]}  Re8 {[%clk 0:01:23]} 44. Rh1 {[%clk 0:01:01]}  a5 {[%clk 0:01:22]} 45. bxa5 {[%clk 0:00:58]}  Ra8 {[%clk 0:01:22]} 46. Kc2 {[%clk 0:00:56]}  Rxa5 {[%clk 0:01:22]} 47. Kb3 {[%clk 0:00:57]}  Ra8 {[%clk 0:01:17]} 48. a4 {[%clk 0:00:49]}  Re8 {[%clk 0:01:16]} 49. Kc3 {[%clk 0:00:42]}  Re2 {[%clk 0:01:15]} 50. Nxh4 {[%clk 0:00:41]}  gxh4 {[%clk 0:01:13]} 51. Rxh4 {[%clk 0:00:42]}  Re7 {[%clk 0:01:06]} 52. Rh5 {[%clk 0:00:41]}  Kg6 {[%clk 0:00:58]} 53. Rh8 {[%clk 0:00:39]}  Rf7 {[%clk 0:00:57]} 54. Rg8+ {[%clk 0:00:38]}  Kf6 {[%clk 0:00:54]} 55. a5 {[%clk 0:00:35]}  Bc7 {[%clk 0:00:52]} 56. g5+ {[%clk 0:00:32]}  Kf5 {[%clk 0:00:45]} 57. Kb4 {[%clk 0:00:32]}  Bd6+ {[%clk 0:00:42]} 58. Kc3 {[%clk 0:00:31]}  Rd7 {[%clk 0:00:33]} 59. Kb3 {[%clk 0:00:27]}  Kf4 {[%clk 0:00:28]} 60. Kc3 {[%clk 0:00:23]}  Kxf3 {[%clk 0:00:28]} 61. g6 {[%clk 0:00:19]}  Kf4 {[%clk 0:00:28]} 62. g7 {[%clk 0:00:14]}  Kg5 {[%clk 0:00:28]} 63. a6 {[%clk 0:00:10]}  bxa6 {[%clk 0:00:27]} 64. Kb3 {[%clk 0:00:09]}  Kg6 {[%clk 0:00:25]} 65. Rc8 {[%clk 0:00:08]}  Kxg7 {[%clk 0:00:22]} 66. Rxc6 {[%clk 0:00:08]}  a5 {[%clk 0:00:22]} 67. Ka4 {[%clk 0:00:06]}  Bb4 {[%clk 0:00:22]} 68. Re6 {[%clk 0:00:06]}  Kf7 {[%clk 0:00:22]} 69. Rh6 {[%clk 0:00:06]}  Rc7 {[%clk 0:00:18]} 70. Rh7+ {[%clk 0:00:06]}  Ke6 {[%clk 0:00:18]} 71. Rxc7 {[%clk 0:00:07]}  Kf5 {[%clk 0:00:18]} 72. Kb5 {[%clk 0:00:07]}  Kf4 {[%clk 0:00:19]} 73. Kc6 {[%clk 0:00:07]}  Ke3 {[%clk 0:00:18]} 74. Kxd5 {[%clk 0:00:07]}  Kxd3 {[%clk 0:00:19]} 75. Rh7 {[%clk 0:00:07]}  a4 {[%clk 0:00:19]} 76. Rh3+ {[%clk 0:00:08]}  Kc2 {[%clk 0:00:19]} 77. Kc4 {[%clk 0:00:09]}  Bd2 {[%clk 0:00:19]} 78. d5 {[%clk 0:00:09]}  Bc1 {[%clk 0:00:18]} 79. Rh2+ {[%clk 0:00:05]}  Kb1 {[%clk 0:00:18]} 80. d6 {[%clk 0:00:05]}  a3 {[%clk 0:00:19]} 81. d7 {[%clk 0:00:05]}  Bg5 {[%clk 0:00:18]} 82. Kb3 {[%clk 0:00:05]} 1-0


[Site "https://www.chess.com"]

[Event "Titled Tuesday Blitz November 08 Early 2022"]
[White "Prohorov, Olexandr"]
[Black "Gheorghiu, Calin"]
[WhiteFideId "14105578"]
[BlackFideId "1200305"]
[WhiteElo "1993"]
[BlackElo "2225"]
[Result "0-1"]
[Round "07"]
[TimeControl "180+1"]
[Date "2022.11.09"]
[WhiteClock "0:00:03"]
[BlackClock "0:01:14"]

1. Nf3 {[%clk 0:02:57]}  Nf6 {[%clk 0:02:57]} 2. d4 {[%clk 0:02:54]}  e6 {[%clk 0:02:55]} 3. c4 {[%clk 0:02:54]}  c5 {[%clk 0:02:54]} 4. g3 {[%clk 0:02:49]}  cxd4 {[%clk 0:02:50]} 5. Nxd4 {[%clk 0:02:49]}  Nc6 {[%clk 0:02:50]} 6. Bg2 {[%clk 0:02:49]}  Qb6 {[%clk 0:02:41]} 7. e3 {[%clk 0:02:39]}  Bb4+ {[%clk 0:02:37]} 8. Nc3 {[%clk 0:02:38]}  d5 {[%clk 0:02:25]} 9. cxd5 {[%clk 0:02:33]}  Nxd5 {[%clk 0:02:24]} 10. Bxd5 {[%clk 0:01:31]}  exd5 {[%clk 0:02:21]} 11. O-O {[%clk 0:01:31]}  Bxc3 {[%clk 0:02:16]} 12. bxc3 {[%clk 0:01:31]}  O-O {[%clk 0:02:15]} 13. Ba3 {[%clk 0:01:26]}  Re8 {[%clk 0:02:11]} 14. Rb1 {[%clk 0:01:23]}  Qd8 {[%clk 0:02:11]} 15. Nxc6 {[%clk 0:01:10]}  bxc6 {[%clk 0:02:10]} 16. Qd4 {[%clk 0:01:11]}  Re4 {[%clk 0:02:05]} 17. Qd2 {[%clk 0:00:56]}  Qf6 {[%clk 0:01:56]} 18. f3 {[%clk 0:00:45]}  Re8 {[%clk 0:01:49]} 19. Bc5 {[%clk 0:00:45]}  Ba6 {[%clk 0:01:42]} 20. Rf2 {[%clk 0:00:45]}  Rab8 {[%clk 0:01:41]} 21. Re1 {[%clk 0:00:37]}  Rb7 {[%clk 0:01:39]} 22. Bd4 {[%clk 0:00:37]}  Qg6 {[%clk 0:01:39]} 23. f4 {[%clk 0:00:31]}  Bd3 {[%clk 0:01:35]} 24. Qd1 {[%clk 0:00:24]}  Reb8 {[%clk 0:01:25]} 25. Qa4 {[%clk 0:00:19]}  Rb1 {[%clk 0:01:23]} 26. Rd1 {[%clk 0:00:04]}  Rxd1+ {[%clk 0:01:14]} 27. Qxd1 {[%clk 0:00:03]}  Rb1 {[%clk 0:01:14]} 0-1


[Site "https://www.chess.com"]

[Event "Titled Tuesday Blitz November 08 Early 2022"]
[White "Pultinevicius, Paulius"]
[Black "Noboa Silva, Kevin"]
[WhiteFideId "12809390"]
[BlackFideId "3618471"]
[WhiteElo "2493"]
[BlackElo "2178"]
[Result "1-0"]
[Round "07"]
[TimeControl "180+1"]
[Date "2022.11.09"]
[WhiteClock "0:00:06"]
[BlackClock "0:00:04"]

1. d4 {[%clk 0:03:00]}  e6 {[%clk 0:02:58]} 2. Nf3 {[%clk 0:03:01]}  Nf6 {[%clk 0:02:58]} 3. c3 {[%clk 0:03:01]}  b6 {[%clk 0:02:57]} 4. Bf4 {[%clk 0:03:02]}  Bb7 {[%clk 0:02:58]} 5. e3 {[%clk 0:03:02]}  c5 {[%clk 0:02:58]} 6. Nbd2 {[%clk 0:03:03]}  Be7 {[%clk 0:02:57]} 7. Bd3 {[%clk 0:03:03]}  a6 {[%clk 0:02:55]} 8. O-O {[%clk 0:03:04]}  cxd4 {[%clk 0:02:55]} 9. cxd4 {[%clk 0:03:04]}  O-O {[%clk 0:02:56]} 10. a4 {[%clk 0:03:04]}  d6 {[%clk 0:02:55]} 11. Qe2 {[%clk 0:03:04]}  Nc6 {[%clk 0:02:55]} 12. Rfc1 {[%clk 0:03:04]}  Nb4 {[%clk 0:02:55]} 13. Bb1 {[%clk 0:03:05]}  Rc8 {[%clk 0:02:53]} 14. Bd3 {[%clk 0:02:54]}  Rxc1+ {[%clk 0:02:43]} 15. Rxc1 {[%clk 0:02:53]}  Qa8 {[%clk 0:02:43]} 16. Bb1 {[%clk 0:02:52]}  Rc8 {[%clk 0:02:40]} 17. Qd1 {[%clk 0:02:52]}  h6 {[%clk 0:02:27]} 18. h3 {[%clk 0:02:44]}  Bd5 {[%clk 0:02:24]} 19. Rxc8+ {[%clk 0:02:33]}  Qxc8 {[%clk 0:02:23]} 20. e4 {[%clk 0:02:33]}  Bb7 {[%clk 0:02:17]} 21. Be3 {[%clk 0:02:31]}  d5 {[%clk 0:02:14]} 22. e5 {[%clk 0:02:31]}  Nd7 {[%clk 0:01:41]} 23. Nf1 {[%clk 0:02:30]}  a5 {[%clk 0:01:34]} 24. Qd2 {[%clk 0:02:28]}  Ba6 {[%clk 0:01:32]} 25. Ng3 {[%clk 0:02:28]}  Bf8 {[%clk 0:01:27]} 26. b3 {[%clk 0:02:24]}  Nc6 {[%clk 0:01:18]} 27. Nh5 {[%clk 0:01:50]}  Ne7 {[%clk 0:01:12]} 28. g4 {[%clk 0:01:45]}  Qc6 {[%clk 0:00:58]} 29. g5 {[%clk 0:01:32]}  hxg5 {[%clk 0:00:58]} 30. Bxg5 {[%clk 0:01:18]}  Nf5 {[%clk 0:00:55]} 31. Nh4 {[%clk 0:01:11]}  Bb4 {[%clk 0:00:27]} 32. Qf4 {[%clk 0:01:09]}  Qc3 {[%clk 0:00:20]} 33. Bxf5 {[%clk 0:00:49]}  exf5 {[%clk 0:00:19]} 34. Nxf5 {[%clk 0:00:49]}  Qe1+ {[%clk 0:00:19]} 35. Kh2 {[%clk 0:00:49]}  Bd3 {[%clk 0:00:16]} 36. Nhg3 {[%clk 0:00:04]}  Be4 {[%clk 0:00:13]} 37. Nxe4 {[%clk 0:00:04]}  dxe4 {[%clk 0:00:13]} 38. Be7 {[%clk 0:00:03]}  Bxe7 {[%clk 0:00:10]} 39. Nxe7+ {[%clk 0:00:04]}  Kf8 {[%clk 0:00:10]} 40. Nf5 {[%clk 0:00:04]}  Qe2 {[%clk 0:00:06]} 41. e6 {[%clk 0:00:04]}  fxe6 {[%clk 0:00:02]} 42. Ng3+ {[%clk 0:00:04]}  Ke7 {[%clk 0:00:03]} 43. Nxe2 {[%clk 0:00:04]}  Nf6 {[%clk 0:00:04]} 44. Qc7+ {[%clk 0:00:04]}  Kf8 {[%clk 0:00:03]} 45. Nf4 {[%clk 0:00:05]}  Kg8 {[%clk 0:00:03]} 46. Nxe6 {[%clk 0:00:05]}  Nh5 {[%clk 0:00:03]} 47. Qe7 {[%clk 0:00:05]}  Kh7 {[%clk 0:00:04]} 48. Qf7 {[%clk 0:00:05]}  Kh6 {[%clk 0:00:04]} 49. d5 {[%clk 0:00:05]}  e3 {[%clk 0:00:04]} 50. fxe3 {[%clk 0:00:05]}  b5 {[%clk 0:00:04]} 51. axb5 {[%clk 0:00:05]}  a4 {[%clk 0:00:05]} 52. bxa4 {[%clk 0:00:06]}  g6 {[%clk 0:00:04]} 53. Qf8+ {[%clk 0:00:06]}  Kh7 {[%clk 0:00:04]} 54. Ng5# {[%clk 0:00:06]} 1-0


[Site "https://www.chess.com"]